Cogmind - Beta 17 @@@ ROGUE MODE // 2026.07.16 @ 23:42:09 Player: Skysub Result: Destroyed by H-66 Slayer with Gauss Rifle Performance ------------- Evolutions (4) 2000 Regions Visited (13) 2600 Robots Destroyed (236) 1180 Value Destroyed (8244) 8244 Prototype IDs (9) 180 Alien Tech Used (0) 0 Bonus (15715) 15715 TOTAL SCORE: 29919 Bonus ------- High Alert Combat Kills 1808 Follower Combat Kills 1157 Prayed to X0-1V1 5000 Major X0-1V1 Interference 5650 Entered Garrisons 600 Used RIF Installer 1500 Cogmind --------- Core Integrity 0/700 Matter 630/900 Energy 100/100 System Corruption 4% Temperature Cool (0) Movement Core (750) Ox14 Location -6/Factory Parts ------- > --- POWER (2) -------- (None) > --- PROPULSION (6) --- Light Armored Exoskeleton > --- UTILITY (6) ------ High-capacity Storage Unit Improved Signal Interpreter Relay Coupler [Sentry] (73) > --- WEAPON (2) ------- Scimitar of Distortion (fused) > --- INVENTORY (20) --- Flexi-carbon Leg Improved Cooling System Structural Scanner Advanced Sensor Array Transmission Jammer Advanced ECM Suite Focal Shield EM Disruption Field Remote Force Field Relay Coupler [Swarmer] (22) Relay Coupler [Specialist] (99) Relay Coupler [Heavy] (99) Advanced Beam Rifle Heavy Laser Compact Ion Cannon Flak Gun Heavy Machine Gun Heavy Missile Launcher Plasma Cutter Peak State ------------ > --- POWER ------------ Improved Deuterium Engine Improved Deuterium Engine > --- PROPULSION ------- Armored Huge Wheel Armored Huge Wheel > --- UTILITY ---------- Advanced Heat Sink Huge Storage Unit Improved Heavy Armor Plating Force Field X0-1V1's Piety Tracker > --- WEAPON ----------- Heavy Plasma Cannon Gauss Rifle Gauss Rifle Gauss Rifle Coil Gun Heavy Machine Gun > --- INVENTORY -------- Armored Huge Wheel Improved Cooling System High-capacity Storage Unit Advanced Targeting Computer Weapon Cycler Improved Propulsion Shielding Improved Heavy Armor Plating Improved Heavy Armor Plating Relay Coupler [Sentry] Relay Coupler [Sentry] Relay Coupler [Specialist] Relay Coupler [Hunter] Relay Coupler [Heavy] EM Pulse Cannon Heavy Missile Launcher Remote Datajack Plasma Cutter Scimitar of Distortion [Rating: 93] Favorites ----------- Power Enhanced Nuclear Core Engine Reinforced Ion Engine Power Core Enhanced Nuclear Core Reactor Cold Fusion Reactor Propulsion Armored Huge Wheel Treads Light Treads Leg Light Armored Exoskeleton Wheel Armored Huge Wheel Utility X0-1V1's Piety Tracker Device X0-1V1's Piety Tracker Storage Huge Storage Unit Processor Improved Signal Interpreter Hackware Relay Coupler [Sentry] Protection Improved Heavy Armor Plating Weapon Heavy Assault Rifle Energy Gun Advanced Beam Rifle Energy Cannon Compact Ion Cannon Ballistic Gun Heavy Assault Rifle Ballistic Cannon Assault Cannon Launcher Heavy Missile Launcher Special Weapon Remote Datajack Impact Weapon Hammer Slashing Weapon Scimitar of Distortion Build | -11 -10 -10 -10 -9 -8 -8 -8 -8 -7 -7 -7 -7 -6 ------- Run | Yrd Mat Min Exi Min Mat Gar Mat Gar Fac Was Fac Gar Fac Slots Evolved 8 | . . . . . 4 . . . 2 . . . 2 Power . | . . . . . . . . . . . . . . Propulsion 5 | . . . . . 2 . . . 1 . . . 2 Utility 3 | . . . . . 2 . . . 1 . . . . Weapon . | . . . . . . . . . . . . . . Parts Attached 135 | 7 5 3 . 4 25 9 3 16 9 5 15 11 23 Power 21 | 1 1 . . 1 3 2 1 2 3 . 2 1 4 Engine 13 | 1 1 . . 1 3 . 1 2 3 . . 1 . Core 7 | . . . . . . 2 . . . . 2 . 3 Reactor 1 | . . . . . . . . . . . . . 1 Propulsion 21 | 2 . . . . 8 . 1 1 1 1 2 3 2 Treads 4 | . . . . . 3 . . 1 . . . . . Leg 4 | . . . . . . . . . . . . 3 1 Wheel 13 | 2 . . . . 5 . 1 . 1 1 2 . 1 Hover . | . . . . . . . . . . . . . . Flight . | . . . . . . . . . . . . . . Utility 50 | 2 3 1 . 1 6 2 1 5 4 1 6 4 14 Device 28 | 1 1 1 . 1 3 . 1 2 4 1 3 2 8 Storage 4 | 1 2 . . . 1 . . . . . . . . Processor 2 | . . . . . . . . . . . 1 . 1 Hackware 7 | . . . . . . . . 1 . . . 1 5 Protection 9 | . . . . . 2 2 . 2 . . 2 1 . Artifact . | . . . . . . . . . . . . . . Weapon 43 | 2 1 2 . 2 8 5 . 8 1 3 5 3 3 Energy Gun 7 | . . . . . 2 . . . . . 3 2 . Energy Cannon 4 | . . . . . . . . 1 . 1 . . 2 Ballistic Gun 20 | 2 1 2 . 2 2 2 . 5 1 1 1 1 . Ballistic Cannon 1 | . . . . . . 1 . . . . . . . Launcher 7 | . . . . . 4 . . 1 . . 1 . 1 Special Weapon 1 | . . . . . . . . 1 . . . . . Impact Weapon 1 | . . . . . . 1 . . . . . . . Slashing Weapon 2 | . . . . . . 1 . . . 1 . . . Piercing Weapon . | . . . . . . . . . . . . . . Special Melee Weapon . | . . . . . . . . . . . . . . Unidentified Prototypes 8 | . 1 . . . 3 . . . . . 2 . 2 Parts Lost 45 | . 2 3 . 2 4 3 . 3 2 5 1 5 15 Power 13 | . 1 . . . 2 2 . . . 1 . 1 6 Propulsion 7 | . . 1 . . 1 . . . . 1 . 1 3 Utility 15 | . . 1 . 1 1 . . 1 2 1 1 3 4 Weapon 10 | . 1 1 . 1 . 1 . 2 . 2 . . 2 Highest Loss Streak 9 | . 2 3 . 2 1 1 . 2 1 5 1 2 9 To Critical Strikes 2 | . . . . . . . . . . 1 . . 1 Average Backups 19 | 2 6 17 17 18 20 20 22 21 21 19 21 23 19 Power . | . . . . 1 1 1 1 . . . . . . Propulsion 1 | 1 2 3 4 4 1 2 1 2 1 . 1 . 1 Utility 9 | . 2 5 5 5 5 5 7 9 10 11 15 14 10 Weapon 7 | . 1 8 8 8 11 11 11 7 7 4 3 6 6 Tool/Special . | . . . . . . . . . . . . . . Unused Backups 56 | . . 4 . . 15 3 1 12 . . 7 3 11 Power 1 | . . . . . . . . 1 . . . . . Propulsion 7 | . . . . . 1 . . . . . 2 2 2 Utility 24 | . . . . . 7 1 1 5 . . 4 1 5 Weapon 23 | . . 4 . . 7 2 . 6 . . 1 . 3 Tool/Special 1 | . . . . . . . . . . . . . 1 Average Slot Usage (%) 80 | . 98 82 87 91 94 73 70 78 77 58 74 83 77 Engine 7 | . 12 12 12 19 15 4 3 10 14 7 . 2 4 Core 4 | . . . . . . 9 8 5 . . 11 11 2 Treads 1 | . . . . . 8 . . 2 . . . . . Leg 3 | . . . . . . . . . . . . 4 17 Wheel 11 | . 28 11 12 12 15 16 14 8 13 12 14 14 . Device 14 | . 14 9 12 9 19 8 9 15 20 19 14 12 15 Storage 7 | . 14 12 12 12 8 8 8 8 7 5 6 7 6 Processor 2 | . . . . . . . . . . . 5 7 6 Hackware 1 | . . . . . . . . . . . . . 8 Protection 5 | . . . . . 4 8 8 8 7 3 6 9 . Energy Gun 1 | . . . . . . . . . . . 4 4 . Ballistic Gun 9 | . 28 35 37 37 18 4 8 5 12 7 3 1 . Slashing Weapon 3 | . . . . . . 1 . 6 1 . 3 7 6 Peak Build Rating 93 | 7 22 24 24 26 51 57 57 70 77 93 75 74 87 Average Rating 58 | 4 14 20 24 22 36 54 54 58 74 64 70 69 79 On Entrance 42 | . 7 22 24 24 26 49 54 53 68 77 47 70 70 Avg Prop Armor Cover (%) 7 | . . . . . 10 . . 4 . . . 3 11 Naked Turns . | . . . . . . . . . . . . . . Heaviest Build 139 | 12 53 58 58 63 112 124 122 132 138 139 122 125 82 Greatest Support 90 | 32 32 32 16 16 56 56 56 28 56 56 56 60 90 Greatest Overweight (x) 5 | . 1 3 3 3 5 2 4 4 2 2 3 3 2 Average Overweight (x) 1 | . . 2 3 3 2 1 2 3 2 1 1 2 . Largest Inventory Capacity 25 | 8 20 20 20 20 25 25 25 25 25 25 25 25 20 Average Capacity 22 | 7 12 20 20 20 21 25 25 25 25 25 25 24 20 Most Carried 25 | 4 17 19 18 19 25 25 25 25 25 25 25 25 20 Average Carried 21 | 2 6 17 17 18 21 24 24 24 24 22 23 23 19 Final Capacity 25 | 8 20 20 20 20 25 25 25 25 25 25 25 20 20 Final Carried 25 | 3 17 17 18 19 25 25 25 25 25 19 25 20 19 Class Distribution -------------------- 52% | Bothacker-Mutant 25% | Mutant 5% | Gunner 4% | Botlord-Mutant Dominant Class ---------------- Mutant | -10/Materials Gunner | -10/Mines Gunner | -10/Exiles Gunner | -9/Mines Mutant | -8/Materials Mutant | -8/Garrison Mutant | -8/Materials Bothacker-Mutant | -8/Garrison Bothacker-Mutant | -7/Factory Bothacker-Mutant | -7/Waste Bothacker-Mutant | -7/Factory Bothacker-Mutant | -7/Garrison Bothacker-Mutant | -6/Factory Resources | -11 -10 -10 -10 -9 -8 -8 -8 -8 -7 -7 -7 -7 -6 ----------- Run | Yrd Mat Min Exi Min Mat Gar Mat Gar Fac Was Fac Gar Fac Matter Collected 5585 | 190 190 87 . 89 897 447 191 642 403 352 511 455 1131 Remotely . | . . . . . . . . . . . . . . Salvage Created 7827 | 13 288 117 . 137 1944 469 172 705 837 . 731 526 1888 Parts 434 | 2 13 13 . 15 107 17 9 50 42 . 36 28 102 Haulers Intercepted 7 | . 1 . . . 4 . . . . . . . 2 Recyclers Shooed 5 | . . 1 . . 3 . . . . . 1 . . Parts Field Recycled . | . . . . . . . . . . . . . . Retrieved Matter . | . . . . . . . . . . . . . . Parts Self-Destructed . | . . . . . . . . . . . . . . Prevented . | . . . . . . . . . . . . . . Parts Restored . | . . . . . . . . . . . . . . Kills | -11 -10 -10 -10 -9 -8 -8 -8 -8 -7 -7 -7 -7 -6 ------- Run | Yrd Mat Min Exi Min Mat Gar Mat Gar Fac Was Fac Gar Fac Combat Hostiles Destroyed 166 | . 6 6 . 6 30 14 4 26 11 . 16 23 24 Melee 15 | . . . . . . 3 . 5 . . 2 1 4 Guns 64 | . 6 6 . 6 18 1 . 5 10 . 4 8 . Cannons 23 | . . . . . . 9 4 6 . . . . 4 AOE 62 | . . . . . 12 . . 10 1 . 10 14 15 Classes Destroyed 19 | 1 3 1 . . 7 2 1 3 . . . . 1 Worker 18 | . . . . . 7 . . . 2 . 3 . 6 Builder 12 | . 1 . . . 4 . . . . . 2 . 5 Tunneler 5 | 1 . 1 . . . . . . 1 . . . 2 Hauler 7 | . 1 . . . 4 . . . . . . . 2 Recycler 16 | . . . . . 8 . . . 3 . 3 . 2 Mechanic 1 | . . . . . 1 . . . . . . . . Operator 2 | . . . . . 1 . . . 1 . . . . Drone 2 | . . . . . . . . 1 . . . 1 . Watcher 7 | . . . . . 4 . 1 . . . 1 . 1 Swarmer 59 | . . 6 . 3 10 2 . 16 3 . 4 12 3 Cutter 1 | . . . . . . 1 . . . . . . . Grunt 59 | . 6 . . 3 11 6 1 2 3 . 7 10 10 Brawler 2 | . . . . . . 2 . . . . . . . Duelist 5 | . . . . . 2 1 1 . . . . . 1 Protector 1 | . . . . . . . . . . . . . 1 Sentry 21 | . . . . . 7 2 1 5 3 . 3 . . Hunter 10 | . . . . . . . 1 1 1 . . . 7 Programmer 8 | . . . . . . . . 2 1 . 2 1 2 Behemoth 1 | . . . . . . . . 1 . . . . . Butcher 1 | . . . . . . . . . . . . 1 . Best Kill Streak 17 | 1 3 6 . 3 17 3 2 11 5 . 12 9 10 Combat Bots Only 11 | . 2 6 . 3 5 3 2 11 3 . 6 9 5 Max Kills in Single Turn 6 | 1 2 1 . 2 6 1 1 3 2 . 4 3 3 Gunslinging 1 | . . . . 1 1 . . . . . 1 . . Exploded 3 | . . . . . 3 . . 3 1 . 3 3 3 Melee 1 | . . . . . . 1 . 1 . . 1 1 1 Uniques/NPCs Destroyed . | . . . . . . . . . . . . . . Combat | -11 -10 -10 -10 -9 -8 -8 -8 -8 -7 -7 -7 -7 -6 -------- Run | Yrd Mat Min Exi Min Mat Gar Mat Gar Fac Was Fac Gar Fac Hostile Shots Fired 1391 | . 42 33 . 14 104 74 17 116 245 6 175 177 388 Missed 465 | . 12 9 . 4 17 12 7 22 112 . 76 66 128 Hits 926 | . 30 24 . 10 87 62 10 94 133 6 99 111 260 Melee 53 | . . . . . 2 5 . 28 . 6 . 10 2 Projectile 873 | . 30 24 . 10 85 57 10 66 133 . 99 101 258 AOE 4 | . . . . . . 2 . . . . . . 2 Critical Strikes 25 | . 1 . . . 4 5 1 2 . 4 1 2 5 Part Disruptions 1 | . . . . . . . . . . . . . 1 Damage Taken 12327 | 1 360 194 . 104 1296 1179 154 1121 809 287 1237 1290 4295 Core 1406 | . 79 26 . . 80 136 . 92 53 43 120 77 700 Absorbed by Shields 1033 | . . . . . . 72 . . 322 188 . 184 267 Redirected to Shielding 71 | . . . . . . . . . . . . 71 . Regen/Repaired (Parts) 486 | . . . . . . . . . . . . . 486 Core Remaining (%) 70 | 100 . . . 82 . . . 31 . . . 70 . Volleys Fired 448 | 4 44 11 . 6 81 33 17 35 52 13 30 58 64 Largest 6 | 2 2 3 . 3 3 2 2 2 2 6 2 1 1 Hottest 234 | 40 40 66 . 69 79 60 60 63 80 234 83 61 90 Shots Fired 805 | 8 88 29 . 18 207 65 34 57 103 29 44 58 65 Gun 626 | 8 88 29 . 18 196 33 17 31 103 27 33 43 . Cannon 89 | . . . . . . 32 17 16 . 1 1 . 22 Launcher 71 | . . . . . 11 . . 9 . . 10 13 28 Special 19 | . . . . . . . . 1 . 1 . 2 15 Kinetic 645 | 8 88 29 . 18 194 65 34 44 102 27 27 9 . Thermal 59 | . . . . . 2 . . . . 1 . 34 22 Explosive 56 | . . . . . 11 . . 9 . . 10 13 13 Electromagnetic 26 | . . . . . . . . 3 1 . 7 . 15 Robot Hit Streak 16 | 3 8 7 . 9 16 12 7 7 12 10 12 16 8 Robot Miss Streak 7 | 1 3 4 . 2 5 5 2 7 3 1 7 3 2 Penetration Max 1 | . . . . . . . . . 1 . . . . Secondary Targets 11 | . . 3 . 3 2 . . . 2 . 1 . . Max Gunslinging Chain 1 | . . 1 . 1 1 . . . 1 . 1 . . Shots Hit Robots 599 | 5 56 16 . 13 126 49 24 55 71 25 51 43 65 Core Hits 414 | 2 20 8 . 8 88 20 11 33 31 7 58 49 79 Critical Kills 1 | . . . . . . 1 . . . . . . . Critical Parts Destroyed 6 | . . . . . 1 1 . . 4 . . . . Critical Strikes 14 | . . . . . 1 5 1 3 4 . . . . Destroy 5 | . . . . . 1 . . . 4 . . . . Blast 6 | . . . . . . 3 1 2 . . . . . Smash 2 | . . . . . . 2 . . . . . . . Sever 1 | . . . . . . . . 1 . . . . . Melee Attacks 248 | . . . . . . 26 . 76 8 2 36 47 53 Impact 26 | . . . . . . 26 . . . . . . . Slashing 222 | . . . . . . . . 76 8 2 36 47 53 Piercing . | . . . . . . . . . . . . . . Sneak Attacks 24 | . . . . . . 3 . 11 1 . 2 1 6 Combat Hostiles 2 | . . . . . . . . 1 . . . 1 . Follow-up Attacks . | . . . . . . . . . . . . . . Damage Inflicted 21529 | 55 560 191 . 188 3354 1179 469 2624 1874 598 2946 2970 4521 Guns 6847 | 53 560 191 . 188 1824 322 186 372 1637 444 494 576 . Cannons 1846 | . . . . . 46 622 283 447 . 32 . . 416 Explosions 9400 | . . . . . 1484 . . 772 119 122 1886 2009 3008 Melee 3434 | . . . . . . 235 . 1033 118 . 566 385 1097 Ramming 2 | 2 . . . . . . . . . . . . . Kinetic 7686 | 53 560 191 . 188 1854 944 469 691 1626 444 452 214 . Thermal 1734 | . . . . . 16 . . . 119 32 671 362 534 Explosive 7163 | . . . . . 1484 . . 772 . 122 1215 2009 1561 Electromagnetic 1510 | . . . . . . . . 128 11 . 42 . 1329 Impact 235 | . . . . . . 235 . . . . . . . Slashing 3199 | . . . . . . . . 1033 118 . 566 385 1097 Piercing . | . . . . . . . . . . . . . . Highest Corruption 19 | . . . . . 7 10 . 3 2 2 2 19 4 Average Corruption 3 | . . . . . 7 8 . 2 1 2 2 6 2 Corruption Purged . | . . . . . . . . . . . . . . Corruption Blocked . | . . . . . . . . . . . . . . Effects 93 | . . . . . . 14 . 27 3 2 17 3 27 Message Errors 23 | . . . . . . 3 . 5 1 . 3 . 11 Matter Fused 23 | . . . . . . 3 . 9 . 2 3 . 6 Heat Flow Errors 17 | . . . . . . 3 . 6 . . 5 1 2 Energy Discharges 9 | . . . . . . . . 2 . . 5 . 2 Parts Rejected 3 | . . . . . . 1 . . . . . . 2 Data Loss (minor) 5 | . . . . . . 1 . 1 1 . . 2 . Data Loss (major) 5 | . . . . . . 2 . 1 . . 1 . 1 Misfires 4 | . . . . . . 1 . 1 . . . . 2 Alerts 2 | . . . . . . . . 2 . . . . . Weapon Failures 2 | . . . . . . . . . 1 . . . 1 Overload Shots . | . . . . . . . . . . . . . . Overflow Damage 1003 | . . . . . 100 62 . 62 . . 272 175 332 Projectiles 42 | . . . . . . . . 24 . . . . 18 Explosions 546 | . . . . . 100 . . 26 . . 225 111 84 Melee 415 | . . . . . . 62 . 12 . . 47 64 230 Knockbacks 9 | . . . . . . 6 3 . . . . . . Impact 1 | . . . . . . 1 . . . . . . . Kinetic 8 | . . . . . . 5 3 . . . . . . Secondary . | . . . . . . . . . . . . . . Self-Inflicted Damage 757 | 1 . . . . 97 . . 105 . . 193 170 191 Shots 28 | . . . . . 2 . . 3 . . 6 7 10 Rammed 1 | 1 . . . . . . . . . . . . . Targets Rammed 1 | 1 . . . . . . . . . . . . . Kicked . | . . . . . . . . . . . . . . Crushed . | . . . . . . . . . . . . . . Highest Temperature 332 | . 27 74 . 163 249 332 81 210 16 36 205 236 299 Average Temperature 77 | . 8 25 . 67 66 155 31 54 11 24 70 66 83 Received Heat Transfer 2939 | . 216 . . 36 414 469 81 171 224 . 210 430 688 Effects 5 | . . . . . 2 3 . . . . . . . Energy Bleed 2 | . . . . . . 2 . . . . . . . Interference 2 | . . . . . 2 . . . . . . . . Matter Decay 1 | . . . . . . 1 . . . . . . . Siege Activations . | . . . . . . . . . . . . . . Martial Activations . | . . . . . . . . . . . . . . Shielding Activations . | . . . . . . . . . . . . . . Robots Disrupted . | . . . . . . . . . . . . . . Combat Hostiles . | . . . . . . . . . . . . . . Robots Corrupted 2 | . . . . . . 1 . . . . . . 1 Combat Hostiles 2 | . . . . . . 1 . . . . . . 1 Parts Fried 11 | . . . . . . 2 . . . . . . 9 Impact Corruptions 2 | . . . . . . 2 . . . . . . . Robots Melted . | . . . . . . . . . . . . . . Combat Hostiles . | . . . . . . . . . . . . . . Parts Melted 11 | . . . . . 6 . . . . . . 1 4 Heat Transferred 1921 | . . . . . 37 . . . 100 50 400 629 705 Parts Sabotaged . | . . . . . . . . . . . . . . Parts Stolen 2 | . . . . . . . . 2 . . . . . Parts Stripped 4 | . . . . . . . . . . . . . 4 Power Chain Reactions 4 | . . . . . . . . . . . 1 . 3 Alert | -11 -10 -10 -10 -9 -8 -8 -8 -8 -7 -7 -7 -7 -6 ------- Run | Yrd Mat Min Exi Min Mat Gar Mat Gar Fac Was Fac Gar Fac Maximum Alert Level 4 | . . . . . 2 3 2 4 3 1 2 4 4 Low Security (%) 19 | 100 100 100 . 100 31 . . . . 7 42 . . Level 1 18 | . . . . . 22 9 64 13 . 92 52 19 . Level 2 20 | . . . . . 46 61 35 15 26 . 5 2 21 Level 3 28 | . . . . . . 28 . 38 73 . . 34 60 Level 4 13 | . . . . . . . . 31 . . . 43 18 Level 5 . | . . . . . . . . . . . . . . High Security . | . . . . . . . . . . . . . . Max Security . | . . . . . . . . . . . . . . Peak Influence 1365 | 5 74 120 . 90 593 818 428 1356 990 347 428 1355 1365 Initial 711 | . . 19 . . 19 369 398 252 711 346 138 203 711 Average 581 | . 22 60 . 42 327 578 392 839 767 267 238 908 858 Influence Increases 7658 | 5 217 145 . 130 1051 599 150 1214 637 22 635 1322 1531 Destroy 0b10 Robot/C 4020 | . 120 120 . 120 600 360 80 700 260 . 320 720 620 Destroy 0b10 Robot/NC 360 | 5 10 5 . . 145 . 5 . 35 . 45 . 110 Destroy Leader 638 | . 42 20 . 10 146 20 30 40 80 . 82 30 138 Allied During Kill 303 | . . . . . . 57 . 24 13 . . 136 73 Successful Hack 124 | . . . . . 18 . 18 14 13 . . 7 54 Select Force Hacks 60 | . 30 . . . 30 . . . . . . . . Disable Machine 390 | . . . . . 15 . . . 165 . 75 15 120 Anti-Garrison Action 550 | . . . . . . 50 . 250 . . . 250 . Destroy Structure 695 | . . . . . 67 22 2 171 41 22 83 149 138 Lose Combat Pursuer 270 | . 15 . . . 30 90 15 15 30 . 30 15 30 Miscellaneous 248 | . . . . . . . . . . . . . 248 Influence Decreases 6374 | 5 167 180 15 80 532 350 580 246 1003 814 543 257 1602 Entered New Map 2913 | . . 31 15 . 31 200 420 136 645 644 60 87 644 Time Decay 2501 | 5 167 130 . 70 471 . 160 . 318 100 482 . 598 Lost Part 390 | . . 19 . 10 30 30 . 30 20 50 1 50 150 Lost Ally 570 | . . . . . . 120 . 80 20 20 . 120 210 Squads Dispatched 40 | . 4 . . . 7 . 4 . 4 . 2 . 19 Investigation 8 | . 2 . . . 1 . 2 . 1 . . . 2 Extermination 8 | . . . . . . . . . 1 . 2 . 5 Reinforcement 18 | . 2 . . . 3 . 1 . 2 . . . 10 Assault 1 | . . . . . . . . . . . . . 1 Garrison 5 | . . . . . 3 . 1 . . . . . 1 Intercept . | . . . . . . . . . . . . . . Searches Triggered . | . . . . . . . . . . . . . . Construction Impeded 4 | . . . . . 1 . . . . . . . 3 Haulers Reinforced 3 | . . . . . . . . . . . . . 3 Active Scanning Responses . | . . . . . . . . . . . . . . Cargo Convoy Interrupts . | . . . . . . . . . . . . . . Stealth | -11 -10 -10 -10 -9 -8 -8 -8 -8 -7 -7 -7 -7 -6 --------- Run | Yrd Mat Min Exi Min Mat Gar Mat Gar Fac Was Fac Gar Fac Distress Signals 13 | . 1 . . . 3 . 3 . 1 . . . 5 Communications Jammed 1 | . . . . . . . . . . . . . 1 Distress Signals . | . . . . . . . . . . . . . . Times Spotted 290 | . 14 6 . 6 40 21 14 37 16 5 26 37 68 Peak Tracking Total 19 | . 6 5 . 3 9 5 5 7 5 5 5 5 19 Tactical Retreats 13 | . 1 . . . 1 3 1 1 2 . 1 1 2 Traps | -11 -10 -10 -10 -9 -8 -8 -8 -8 -7 -7 -7 -7 -6 ------- Run | Yrd Mat Min Exi Min Mat Gar Mat Gar Fac Was Fac Gar Fac Traps Triggered 23 | . 1 . . . . 4 1 7 3 . 1 5 1 Indirectly . | . . . . . . . . . . . . . . Trap Hack Attempts . | . . . . . . . . . . . . . . Triggered . | . . . . . . . . . . . . . . Disarmed . | . . . . . . . . . . . . . . Reprogrammed . | . . . . . . . . . . . . . . Reused . | . . . . . . . . . . . . . . Traps Extracted . | . . . . . . . . . . . . . . Installed . | . . . . . . . . . . . . . . Triggered . | . . . . . . . . . . . . . . Machines | -11 -10 -10 -10 -9 -8 -8 -8 -8 -7 -7 -7 -7 -6 ---------- Run | Yrd Mat Min Exi Min Mat Gar Mat Gar Fac Was Fac Gar Fac Machines Disabled 33 | . . . . . 1 1 . 3 11 . 5 4 8 Max in Single Turn 11 | . . . . . 1 1 . 1 11 . 3 1 1 Garrison Access 1 | . . . . . . . . . . . 1 . . Garrison Relay 8 | . . . . . . 1 . 3 . . . 4 . Machines Repaired . | . . . . . . . . . . . . . . Machines Dismantled . | . . . . . . . . . . . . . . Machines Sabotaged . | . . . . . . . . . . . . . . Overloaded Fab Kills . | . . . . . . . . . . . . . . Hacking | -11 -10 -10 -10 -9 -8 -8 -8 -8 -7 -7 -7 -7 -6 --------- Run | Yrd Mat Min Exi Min Mat Gar Mat Gar Fac Was Fac Gar Fac Machines Accessed 39 | . 2 . . . 7 . 4 2 6 . 8 2 8 Terminals 20 | . 1 . . . 5 . 2 2 2 . 4 2 2 Fabricators 8 | . . . . . . . . . 3 . 2 . 3 Repair Stations 1 | . . . . . . . . . . . . . 1 Recycling Units 4 | . 1 . . . 1 . . . 1 . . . 1 Scanalyzers 2 | . . . . . . . 1 . . . . . 1 Garrison Access 4 | . . . . . 1 . 1 . . . 2 . . Total Hacks 97 | . 7 . . . 20 . 14 4 12 . 17 3 20 Successful 54 | . 4 . . . 15 . 9 1 6 . 4 2 13 Failed 43 | . 3 . . . 5 . 5 3 6 . 13 1 7 Catastrophic 10 | . . . . . 1 . 1 1 3 . 3 . 1 Database Lockouts . | . . . . . . . . . . . . . . Manual 49 | . 7 . . . 18 . 5 . 7 . 5 . 7 Terminals 50 | . 5 . . . 16 . 6 4 4 . 7 3 5 Fabricators 17 | . . . . . . . . . 6 . 4 . 7 Repair Stations 2 | . . . . . . . . . . . . . 2 Recycling Units 10 | . 2 . . . 3 . . . 2 . . . 3 Scanalyzers 10 | . . . . . . . 7 . . . . . 3 Garrison Access 8 | . . . . . 1 . 1 . . . 6 . . Terminal Hacks 8 | . . . . . 4 . . 1 . . . 2 1 Robot Analysis 1 | . . . . . 1 . . . . . . . . Open Door 1 | . . . . . . . . . . . . 1 . Branch Access Points 2 | . . . . . 1 . . . . . . . 1 Emergency Access Points 1 | . . . . . . . . . . . . 1 . Terminal Index 1 | . . . . . 1 . . . . . . . . Alert Level 1 | . . . . . 1 . . . . . . . . Garrison Registry 1 | . . . . . . . . 1 . . . . . Fabricator Hacks 6 | . . . . . . . . . 2 . 1 . 3 Network Status 5 | . . . . . . . . . 2 . 1 . 2 Build 1 | . . . . . . . . . . . . . 1 Repair Station Hacks 2 | . . . . . . . . . . . . . 2 Scan Component 1 | . . . . . . . . . . . . . 1 Repair 1 | . . . . . . . . . . . . . 1 Recycling Unit Hacks 6 | . 1 . . . 2 . . . 2 . . . 1 Report Inventory 4 | . 1 . . . 1 . . . 1 . . . 1 Retrieve Components 2 | . . . . . 1 . . . 1 . . . . Scanalyzer 8 | . . . . . . . 6 . . . . . 2 Retrieve Study 8 | . . . . . . . 6 . . . . . 2 Garrison Access Hacks 5 | . . . . . 1 . 1 . . . 3 . . Unlock Access 3 | . . . . . 1 . 1 . . . 1 . . Seal Access 1 | . . . . . . . . . . . 1 . . Coupler Status 1 | . . . . . . . . . . . 1 . . Unauthorized Hacks 19 | . 3 . . . 8 . 2 . 2 . . . 4 Terminals 13 | . 2 . . . 7 . 2 . 1 . . . 1 Botnet 5 | . 1 . . . 2 . . . 1 . . . 1 Skim 8 | . 1 . . . 5 . 2 . . . . . . Fabricators 4 | . . . . . . . . . 1 . . . 3 Liberate 1 | . . . . . . . . . . . . . 1 Fabnet 3 | . . . . . . . . . 1 . . . 2 Repair Stations . | . . . . . . . . . . . . . . Recycling Units 2 | . 1 . . . 1 . . . . . . . . Tunnel 2 | . 1 . . . 1 . . . . . . . . Scanalyzers . | . . . . . . . . . . . . . . Garrison Access . | . . . . . . . . . . . . . . Data Cores Recovered . | . . . . . . . . . . . . . . Used . | . . . . . . . . . . . . . . Hacking Detections 29 | . 1 . . . 5 . 3 2 4 . 7 1 6 Full Trace Events 4 | . . . . . . . 1 . 1 . . . 2 Feedback Events . | . . . . . . . . . . . . . . Feedback Blocked . | . . . . . . . . . . . . . . Robot Schematics Acquired . | . . . . . . . . . . . . . . Robots Built 3 | . . . . . . . . . . . . . 3 Authchips . | . . . . . . . . . . . . . . Time 152 | . . . . . . . . . . . . . 152 Total Robot Build Rating 15 | . . . . . . . . . . . . . 15 Part Schematics Acquired . | . . . . . . . . . . . . . . Parts Built . | . . . . . . . . . . . . . . Authchips . | . . . . . . . . . . . . . . Time . | . . . . . . . . . . . . . . Total Part Build Rating . | . . . . . . . . . . . . . . Part Studies Acquired 8 | . . . . . . . 6 . . . . . 2 Parts Repaired 1 | . . . . . . . . . . . . . 1 Time 44 | . . . . . . . . . . . . . 44 Parts Recycled . | . . . . . . . . . . . . . . Recycled Matter . | . . . . . . . . . . . . . . Retrieved Matter . | . . . . . . . . . . . . . . Retrieved Components 11 | . . . . . 9 . . . 2 . . . . Parts Scanalyzed . | . . . . . . . . . . . . . . Part Schematics Acquired . | . . . . . . . . . . . . . . Parts Damaged . | . . . . . . . . . . . . . . Bothacking | -11 -10 -10 -10 -9 -8 -8 -8 -8 -7 -7 -7 -7 -6 ------------ Run | Yrd Mat Min Exi Min Mat Gar Mat Gar Fac Was Fac Gar Fac Used RIF Installer 3 | . . . . . . 1 . 1 . . . 1 . Signal Jammer 1 | . . . . . . . . . . . . 1 . Patrol Navigation 1 | . . . . . . . . . . . 1 . . Program Shield 1 | . . . . . . . . 1 . . . . . Robots Hacked 17 | . . . . . . . . 1 . 1 . 2 13 Non-combat 1 | . . . . . . . . . . . . . 1 Combat 16 | . . . . . . . . 1 . 1 . 2 12 Robot Hacks Applied 15 | . . . . . . . . 1 . 1 . 2 11 parse_system 2 | . . . . . . . . . . 1 . . 1 find_garrison 1 | . . . . . . . . . . . . . 1 overload_power 1 | . . . . . . . . . . . . . 1 amplify_resonance 1 | . . . . . . . . . . . . . 1 overwrite_iff 1 | . . . . . . . . . . . . . 1 streamctrl_high 3 | . . . . . . . . 1 . . . 1 1 formatsys_high 6 | . . . . . . . . . . . . 1 5 Relay Couplers Released 38 | . . . . . . 3 . 14 . . . 21 . Machine Destruction 34 | . . . . . . 3 . 14 . . . 17 . Programmers 4 | . . . . . . . . . . . . 4 . Attached 7 | . . . . . . . . 1 . . . 1 5 Fabnet Peak Effective % 3 | . . . . . . . . . . . . . 3 Autooverrided 3 | . . . . . . . . . . . . . 3 Robots Rewired 16 | . . . . . . 8 . 5 . . . 3 . Allies Hacked 3 | . . . . . . . . . . . . . 3 Hacks Repelled . | . . . . . . . . . . . . . . Allies | -11 -10 -10 -10 -9 -8 -8 -8 -8 -7 -7 -7 -7 -6 -------- Run | Yrd Mat Min Exi Min Mat Gar Mat Gar Fac Was Fac Gar Fac Total Allies 44 | . . . . . . 8 . 8 . 1 4 5 18 Largest Group 6 | . . . . . . 6 . 3 1 1 4 4 6 Highest-Rated Group 192 | . . . . . . 83 . 120 21 31 116 116 192 Highest-Rated Ally 80 | . . . . . . 24 . 80 21 31 29 32 47 Total Orders 2 | . . . . . . . . 1 . . . 1 . STAY 1 | . . . . . . . . 1 . . . . . AID 1 | . . . . . . . . . . . . 1 . Ally Attacks 245 | . . . . . . 23 . 19 12 12 1 102 76 Total Damage 5092 | . . . . . . 448 . 804 169 171 . 1430 2070 Kills 44 | . . . . . . 5 . 9 2 . . 13 15 Allies Corrupted 3 | . . . . . . . . 1 1 . . . 1 Allies Melted . | . . . . . . . . . . . . . . X0-1V1 Amusement Gains 156 | . 7 30 . . 10 10 . 50 36 . . 1 12 Good Acts 79 | . 4 8 . 2 7 9 . 6 7 5 12 9 10 Bad Acts 45 | . 4 1 . 2 6 1 4 4 . . 3 8 12 Intel | -11 -10 -10 -10 -9 -8 -8 -8 -8 -7 -7 -7 -7 -6 ------- Run | Yrd Mat Min Exi Min Mat Gar Mat Gar Fac Was Fac Gar Fac Active Infowar (turns) 3859 | 9 240 . . . 1240 32 . . . . 889 291 1158 Sensors 1783 | . . . . . . . . . . . 889 180 714 Structural 1886 | . . . . . 1239 32 . . . . . . 615 Seismic 769 | 9 240 . . . 520 . . . . . . . . Jamming 111 | . . . . . . . . . . . . 111 . ECM 1 | . . . . . . . . . . . . . 1 Robot Analysis Total 1 | . . . . . 1 . . . . . . . . Derelict Logs Recovered . | . . . . . . . . . . . . . . Drone Launches . | . . . . . . . . . . . . . . Drone Recoveries . | . . . . . . . . . . . . . . Exploration | -11 -10 -10 -10 -9 -8 -8 -8 -8 -7 -7 -7 -7 -6 ------------- Run | Yrd Mat Min Exi Min Mat Gar Mat Gar Fac Was Fac Gar Fac Turns Passed 10882 | 82 595 262 187 217 1242 852 322 1611 708 217 1295 1388 1904 Spaces Moved 5772 | 64 296 150 129 131 554 428 188 725 386 120 775 729 1097 Core 16 | 16 . . . . . . . . . . . . . Treads . | . . . . . . . . . . . . . . Legs 1172 | . . . . . . . . . . . . 78 1094 Wheels 4584 | 48 296 150 129 131 554 428 188 725 386 120 775 651 3 Hover . | . . . . . . . . . . . . . . Flight . | . . . . . . . . . . . . . . Fastest Speed 50 | 50 100 115 145 145 111 115 130 145 130 115 115 125 125 Average Speed 133 | 87 105 143 145 145 123 129 135 159 130 118 128 143 127 Slowest Speed 250 | 100 115 145 145 145 165 130 160 160 130 130 140 250 235 Overloaded Moves . | . . . . . . . . . . . . . . Propulsion Burnouts . | . . . . . . . . . . . . . . Robots Hopped . | . . . . . . . . . . . . . . Potential Cave-ins . | . . . . . . . . . . . . . . Cave-ins Triggered 1 | . . . . . . . . . . 1 . . . Exploration Rate (%) 39 | 5 43 24 51 41 42 51 22 61 13 74 29 76 26 Regions Visited 13 Branch Regions 3 Pre-discovered Areas 4 | . 1 . . . 3 . . . . . . . . Known Exits Taken 3 | . . . . . 1 . 1 . . . 1 . . Unknown Exits Taken 5 | 1 1 1 1 1 . . . . . . . . . Scrap Searched 1 | . . 1 . . . . . . . . . . . Spaces Dug 85 | . . . . . . 2 . 20 6 2 19 23 13 Terrain Destroyed 594 | . . . . . 65 2 2 68 40 28 83 137 169 Melee 84 | . . . . . . 2 . 20 6 2 19 22 13 Projectile 12 | . . . . . . . 2 . . 2 . 7 1 AOE 498 | . . . . . 65 . . 48 34 24 64 108 155 Terrain Rammed . | . . . . . . . . . . . . . . Walls Destroyed . | . . . . . . . . . . . . . . Machines Disabled . | . . . . . . . . . . . . . . Actions | -11 -10 -10 -10 -9 -8 -8 -8 -8 -7 -7 -7 -7 -6 --------- Run | Yrd Mat Min Exi Min Mat Gar Mat Gar Fac Was Fac Gar Fac Total 7831 | 79 502 179 129 143 948 616 224 999 484 165 972 939 1452 Wait 663 | . 144 . . 1 221 7 6 14 10 20 65 3 172 Move 5763 | 63 295 149 128 130 554 427 188 724 386 119 775 728 1097 Hop . | . . . . . . . . . . . . . . Pick Up 144 | 4 13 8 1 2 27 11 5 19 7 . 21 12 14 Fast Attach 38 | 6 1 . . 2 5 2 1 4 2 . 5 3 7 Attach 53 | 1 2 4 . 1 6 3 2 5 4 7 7 7 4 Detach 9 | . 1 1 . . 2 . . 1 1 1 1 1 . Swap 127 | . 2 1 . 1 21 11 1 19 6 3 13 17 32 Drop 107 | . . 5 . . 31 10 4 20 8 . 11 9 9 Fire 448 | 4 44 11 . 6 81 33 17 35 52 13 30 58 64 Melee 248 | . . . . . . 26 . 76 8 2 36 47 53 Ram 1 | 1 . . . . . . . . . . . . . Kick . | . . . . . . . . . . . . . . Crush . | . . . . . . . . . . . . . . Escape Stasis 90 | . . . . . . 10 . 40 . . 8 32 . Rewire 140 | . . . . . . 76 . 42 . . . 22 . Trap . | . . . . . . . . . . . . . . Miscellaneous . | . . . . . . . . . . . . . . Route ------- -11/Scrapyard -10/Materials (discovered 2 exits: [*Mat] / [*Min]) -10/Mines -10/Exiles (discovered 2 exits: [*Min x2]) -9/Mines -8/Materials (discovered 4 exits: Fac x3 / Gar) -8/Garrison (discovered 3 exits: *Mat x3) -8/Materials (discovered 2 exits: *Fac / Gar) -8/Garrison (discovered 3 exits: *Fac x3) -7/Factory (discovered 3 exits: Fac x2 / *Low) -7/Waste -7/Factory (discovered 3 exits: *Fac x2 / Gar) -7/Garrison (discovered 3 exits: *Fac x2 / *Fac) -6/Factory (discovered 6 exits: *Fac x2 / Low x2 / *Ext x2) History --------- Turn | Location | Event 10 | -11/Scrapyard | Discovered new exit (range 15) 83 | -11/Scrapyard | Entered Materials 304 | -10/Materials | Build established: Mutant 315 | -10/Materials | Prayed at D.C.S.S. Altar Unit 373 | -10/Materials | Ranged accuracy permanently improved by X0-1V1 (+5%; -50 max core) 436 | -10/Materials | Discovered new exit (range 11) 537 | -10/Materials | X0-1V1 sent you into danger 556 | -10/Materials | Discovered new exit (range 7) 678 | -10/Materials | Entered Mines 685 | -10/Mines | X0-1V1 mutated your Propulsion slot to Power slot 688 | -10/Mines | Weapon slot count permanently improved by X0-1V1 (+1) 741 | -10/Mines | Lost 3 parts (1n1u1w) 750 | -10/Mines | X0-1V1 activates XOMVISION 932 | -10/Mines | Deemed a non-threat by the Exiles lab entrance 933 | -10/Mines | Discovered new exit (range 5) 940 | -10/Mines | Entered Exiles 959 | -10/Exiles | Discovered new exit (range 15) 978 | -10/Exiles | Met 8R-AWN 1001 | -10/Exiles | Met EX-HEX 1006 | -10/Exiles | Build established: Gunner 1055 | -10/Exiles | Met EX-DEC 1111 | -10/Exiles | Discovered new exit (range 12) 1127 | -10/Exiles | Entered Mines 1185 | -9/Mines | X0-1V1 sent you into danger 1195 | -9/Mines | Core integrity restored by X0-1V1 (+34) 1235 | -9/Mines | X0-1V1 sent hostile G-34 Mercenary (x3) 1293 | -9/Mines | Discovered new exit (range 17) 1344 | -9/Mines | Entered Materials 1344 | -8/Materials | Evolved 4 slots: Propulsion x2, Utility x2 1594 | -8/Materials | Energy generation permanently improved by X0-1V1 (+10; -100 max core) 1750 | -8/Materials | X0-1V1 foreshadows a heat wave 1887 | -8/Materials | X0-1V1 mutated your Weapon slot to Propulsion slot 1892 | -8/Materials | Ambient heat levels rising (+10) 1944 | -8/Materials | X0-1V1 sent you into danger 2043 | -8/Materials | Ambient heat levels rising (+10) 2104 | -8/Materials | X0-1V1 sent hostile Y-45 Defender (x1) 2155 | -8/Materials | Identified exit to Factory 2155 | -8/Materials | X0-1V1 revealed exit location to -7/Factory 2279 | -8/Materials | X0-1V1 sent hostile L-31 Rogue (x2) 2283 | -8/Materials | Ambient heat levels falling (-10) 2326 | -8/Materials | Learned Factory stockpile data 2386 | -8/Materials | Garrison activated, responded to threat 2387 | -8/Materials | Learned Storage security intel 2429 | -8/Materials | Identified exit to Garrison 2473 | -8/Materials | Ambient heat levels falling (-10) 2510 | -8/Materials | Build established: Mutant 2532 | -8/Materials | Learned location of Lower Caves (-7) 2564 | -8/Materials | Learned 8 Factory zone layouts 2586 | -8/Materials | Entered Garrison 2618 | -8/Garrison | Triggered checkpoint 2786 | -8/Garrison | Identified exit to Materials 2786 | -8/Garrison | X0-1V1 revealed exit location to -8/Materials 2847 | -8/Garrison | X0-1V1 activates XOMVISION 2897 | -8/Garrison | System corruption reached 10% 3064 | -8/Garrison | X0-1V1 rewrote Pest 3b IFF filter 3104 | -8/Garrison | Triggered checkpoint 3157 | -8/Garrison | Installed Relay Interface Framework 3218 | -8/Garrison | Triggered checkpoint 3227 | -8/Garrison | Lost 4 allies 3265 | -8/Garrison | Garrison Relay disabled 3318 | -8/Garrison | Discovered exit to Materials (range 10) 3437 | -8/Garrison | X0-1V1 revealed exit location to -8/Materials 3438 | -8/Garrison | Entered Materials 3464 | -8/Materials | X0-1V1 sent someone to keep an eye on you 3691 | -8/Materials | X0-1V1 mutated your Propulsion slot to Utility slot 3738 | -8/Materials | Garrison activated, responded to threat 3744 | -8/Materials | Discovered exit to Factory (range 8) 3760 | -8/Materials | Identified exit to Garrison 3760 | -8/Materials | Entered Garrison 3801 | -8/Garrison | X0-1V1 activates XOMVISION 3938 | -8/Garrison | Hrd. Heavy Armor Plating reconfigured into Item Mimic 3974 | -8/Garrison | Triggered checkpoint 3985 | -8/Garrison | Garrison Relay disabled 4172 | -8/Garrison | Triggered checkpoint 4188 | -8/Garrison | Core integrity fell below 50% 4207 | -8/Garrison | Triggered checkpoint 4209 | -8/Garrison | X0-1V1 upgraded hostiles (x2) 4239 | -8/Garrison | Destroyed 11 combat bots 4297 | -8/Garrison | Build established: Bothacker-Mutant 4324 | -8/Garrison | Triggered checkpoint 4338 | -8/Garrison | Garrison Relay disabled 4384 | -8/Garrison | Discovered exit to Factory (range 8) 4702 | -8/Garrison | Triggered checkpoint 4730 | -8/Garrison | Spotted B-75 Beast 4748 | -8/Garrison | Hijacked Beast 3a control node with streamctrl_high 4765 | -8/Garrison | Lost 3 allies 4806 | -8/Garrison | Destroyed Beast 3a 4934 | -8/Garrison | X0-1V1 revealed exit location to -7/Factory 4985 | -8/Garrison | X0-1V1 activates XOMVISION 5031 | -8/Garrison | Discovered exit to Factory (range 45) 5031 | -8/Garrison | Discovered exit to Factory (range 83) 5031 | -8/Garrison | Discovered exit to Factory (range 27) 5215 | -8/Garrison | X0-1V1 turns hostiles against one another 5279 | -8/Garrison | Expanded RIF knowledge: Program Shield 5371 | -8/Garrison | Entered Factory 5371 | -7/Factory | Accompanied by 1 ally 5371 | -7/Factory | Evolved 2 slots: Propulsion x1, Utility x1 5372 | -7/Factory | Identified exit to Lower Caves 5373 | -7/Factory | Identified exit to Factory 5788 | -7/Factory | X0-1V1 revealed exit location to -6/Factory 6079 | -7/Factory | Sucked down chute 6079 | -7/Factory | Entered Waste 6080 | -7/Waste | Met a frightened Derelict 6083 | -7/Waste | Found Scimitar of Distortion 6107 | -7/Waste | Spotted C-40 Crusher 6112 | -7/Waste | Spotted C-40 Crusher 6144 | -7/Waste | Spotted C-40 Crusher 6144 | -7/Waste | Spotted C-40 Crusher 6177 | -7/Waste | Weapon slot count temporarily expanded by X0-1V1 (+4) 6187 | -7/Waste | Crushed by falling debris 6187 | -7/Waste | Crushed by Compactor (0 parts destroyed, 1 dropped) 6190 | -7/Waste | Crushed by Compactor (1 part destroyed, 2 dropped) 6193 | -7/Waste | Crushed by Compactor (1 part destroyed, 1 dropped) 6202 | -7/Waste | Crushed by Compactor (1 part destroyed, 1 dropped) 6207 | -7/Waste | Crushed by Compactor (1 part destroyed, 1 dropped) 6221 | -7/Waste | Spotted C-40 Crusher 6241 | -7/Waste | Lost 5 parts (1p1n1u2w) 6262 | -7/Waste | Spotted C-40 Crusher 6285 | -7/Waste | Discovered new exit (range 10) 6296 | -7/Waste | Entered Factory 6711 | -7/Factory | Discovered exit to Factory (range 15) 6788 | -7/Factory | Expanded RIF knowledge: Patrol Navigation 6987 | -7/Factory | Core integrity restored by X0-1V1 (+132) 7490 | -7/Factory | X0-1V1 sent you to a vault 7580 | -7/Factory | X0-1V1 revealed exit location to -6/Factory 7587 | -7/Factory | Identified exit to Garrison 7591 | -7/Factory | Entered Garrison 7591 | -7/Garrison | Accompanied by 4 allies 7655 | -7/Garrison | Triggered checkpoint 7659 | -7/Garrison | Garrison Relay disabled 7739 | -7/Garrison | Triggered checkpoint 7761 | -7/Garrison | Discovered new exit (range 6) 7785 | -7/Garrison | Identified exit to Factory 7864 | -7/Garrison | Triggered checkpoint 7888 | -7/Garrison | Enh. Nuclear Core reconfigured into Item Mimic 7889 | -7/Garrison | Destroyed 9 combat bots 7986 | -7/Garrison | X0-1V1 activates XOMVISION 8143 | -7/Garrison | Triggered checkpoint 8172 | -7/Garrison | Garrison Relay disabled 8185 | -7/Garrison | Expanded RIF knowledge: Signal Jamming 8258 | -7/Garrison | Discovered exit to Factory (range 12) 8300 | -7/Garrison | X0-1V1 rewrote TK-3XW(b) IFF filter 8351 | -7/Garrison | Triggered checkpoint 8354 | -7/Garrison | X0-1V1 upgraded hostiles (x2) 8355 | -7/Garrison | Triggered checkpoint 8389 | -7/Garrison | Triggered checkpoint 8389 | -7/Garrison | Garrison Relay disabled 8704 | -7/Garrison | Garrison Relay disabled 8729 | -7/Garrison | Triggered checkpoint 8753 | -7/Garrison | Discovered exit to Factory (range 3) 8955 | -7/Garrison | System corruption reached 10% 8979 | -7/Garrison | Entered Factory 8979 | -6/Factory | Evolved 2 slots: Propulsion x2 9072 | -6/Factory | Build established: Botlord-Mutant 9144 | -6/Factory | X0-1V1 redirected Transport squads to designated parking area 9230 | -6/Factory | X0-1V1 enhanced Transport squad support 9247 | -6/Factory | X0-1V1 upgraded hostiles (x1) 9548 | -6/Factory | Build established: Bothacker-Mutant 9605 | -6/Factory | Fabricated G-50 Soldier (x3) 9679 | -6/Factory | First assault squad dispatched 9799 | -6/Factory | Identified exit to Lower Caves 9799 | -6/Factory | X0-1V1 revealed exit location to -6/Lower Caves 9898 | -6/Factory | Identified exit to Extension 9968 | -6/Factory | X0-1V1 downgraded hostiles (x2) 10114 | -6/Factory | X0-1V1 activates XOMVISION 10164 | -6/Factory | Identified exit to Factory 10164 | -6/Factory | X0-1V1 revealed exit location to -5/Factory 10219 | -6/Factory | X0-1V1 added 0b10 threat records associated with you (major) 10482 | -6/Factory | Sensors blinded by X0-1V1 10568 | -6/Factory | Lost 3 allies 10652 | -6/Factory | Repaired Lgt. Armored Exoskeleton+ 10748 | -6/Factory | Discovered exit to Factory (range 15) 10795 | -6/Factory | Core integrity fell below 50% 10812 | -6/Factory | Build established: Mutant 10873 | -6/Factory | Core integrity fell below 20% 10883 | -6/Factory | Destroyed by H-66 Slayer with Gauss Rifle Last Messages --------------- Sink. 10877_ Slug penetrates G-50 Soldier. 10877_ Slug penetrates Wall. 10878_ Lgt. Armored Exoskeleton+ destroyed. 10878_ Adv. Reaction Control System destroyed. 10878_ X0-1V1's Piety Tracker destroyed. 10878_ X0-1V1 is mildly amused. 10879_ Y-54 Guardian heat damages Lgt. Treads. 10879_ X0-1V1 is amused. 10879_ Slug penetrates Wall. 10881_ Relay Coupler [Hunter] destroyed. 10883_ Y-54 Guardian heat short circuits Imp. Deuterium Engine. 10883_ Penetrated by Slug. 10883_ Com. Wheel destroyed. 10883_ Slug penetrates G-50 Soldier. 10883_ K-01 Serf collects debris. 10883_ Slug penetrates Wall. 10883_ Penetrated by Slug. 10883_ X0-1V1 howls with laughter! Map ----- +----------------------------------------------------+ | """""" ##! ######## ###### ###### | | ## ##????## ###### """ ###### | | ## """ ##???### ###### """ ##???# | | ######### """ ##???### + + """ ##???# | | ???????## """ ##???### ###### ##???# | | ???????## ##???## ###### """ ##???# | | ???????## ##???### ##??## """ ##???# | | ???????## """##???### ! ##??## """ ##???# | | ???????##*!"""##???### ##??## ##???# | | ???????##=% F"##???#############??############???# | | ???????## ! ""###??### ###??############???# | | ???????## ###??#### # ##??????????????????# | | ???????##########???###########??????????????????# | | ???????##########????##########??????????????????# | | ?????????????####????# #?????????????????????? | | ?????????????????????# #?????????????????????? | | ?????????????????????# > #?????????????????????? | | ?????????????????????# #?????????????????????? | | ?????????????????????# #?????????????????????? | | ???????????????????### ##????????????????????? | | ???????????????????""" "?????????????????????? | | ???????????????????## ?????????????????????? | | ????????????????????"""h "??????????????????????? | | ???###???????????????# T#####?????????????????? | | ##### ??????????????## h## #####?????????????? | | ###"""""?????????????# ] @#*[[ #?????????????? | | """ ?????????????## #?????????????? | | " ??????????????#!g ] [ #?????????????? | | ?????????????#= %]![ " #?????????????? | | ????????????# k # *!gY"" #?????????????? | | ###?????????# hAg# %h*%G #?????????????? | | ##?????????# ] =#!ggg!"" #?????????????? | | ! [ ##?????????## # =hg=%" #?????????????? | | /// ??????#####h # ==!% #?????????????? | | /// "##??????#####h*h##########?????????????? | | /// "##??????## ## %=##?????????????????????? | | ########### # h ##?????????????????????? | | #####################"# !=##?????????????????????? | | ############# [[ ! #[%!##?????????????????????? | | ######?????## = " #*=k##?????????????????????? | | ##?????## ="" =#]]]##?????????????????????? | | ######### """ R" /]%]##?????????????????????? | | ######### """ "" #]]]# ?????????????????????? | | / """ "" #=]=# ?????????????????????? | | ######### # # ?????????????????????? | | ######### # # ?????????????????????? | | ##????? ########### ? # ?????????????????????? | | ##????? # """ # ? # ?????????????????????? | | ## ?????????????????? / ?????????????????????? | | # ???????????????????# ?????????????????????? | +----------------------------------------------------+ Best States ------------- Heat Dissipation 80 Energy Generation 41 Energy Capacity 1880 Matter Stores 700 Matter Capacity 900 Sight Range 21 Robot Scan Range 16 Terrain Scan Density 10 Jamming Range 12 Armor Coverage 600 Propulsion Shielding 66 Weapon Cycling 15 Evasion (%) 67 Recoil Reduction 2 Salvage Targeting 1 Relay Coupler Types 2 Relay Coupler Value 114 Item Schematics ----------------- None Robot Schematics ------------------ None Fabricated ------------ G-50 Soldier | x3 | -6/Factory | Preloaded Repaired ---------- Lgt. Armored Exoskeleton | 35% | -6/Factory Studied --------- Hpw. Shotgun | -8/Materials | Hacked Assault Cannon | -8/Materials | Hacked Hvy. Assault Rifle | -8/Materials | Hacked Lgt. Assault Rifle | -8/Materials | Hacked Axe | -8/Materials | Hacked Lgt. Deuterium Engine | -8/Materials | Hacked Lgt. Armored Exoskeleton | -6/Factory | Hacked Remote Datajack | -6/Factory | Hacked Alien Tech Used ----------------- None Achievements -------------- None Challenges ------------ None Game ------ Seed ChargeMolecularBroadsword Manual? 0 Play Time 02:15:35 Cumulative 333.0 hours Start 2026.07.16 @ 19:37:14 End 2026.07.16 @ 23:42:09 Sessions 1 Manual Loads 0 Difficulty Rogue Special Mode None Game No. 402 Rogue 402 Adventurer 0 Explorer 0 Win Type - Total 22 Types 14/0/3/1/1/0/1/1/0/1 Lore% 80 Gallery% 74 Achievement% 66 Wizard Run 0 Options --------- Layout 1 ASCII 0 Keyboard 1 Movement Arrows Keybinds 0 Fullscreen 2 Font 36/Smallcaps Map View 50x40 Zoom Use 0% Tactical HUD 1 Map Filters NONE Filters NONE Steam 1 RUN: e54ef1fd-8500-4bbc-a5b4-e62ccbdb73cd